bitfinex-derivatives/quotes_SOLF0:USTF0_20250416
["timestamp","ask_amount","ask_price","bid_price","bid_amount"]
[1744825544573,47.1,126.82,126.78,7.888]
[1744825544877,0.05219084,126.79,126.78,7.888]
[1744825545665,0.05219084,126.79,126.77,7.9490474]
[1744825545972,0.05219084,126.79,126.77,0.0604474]
[1744825546373,0.05219084,126.79,126.72,3.987]
[1744825546580,0.05219084,126.79,126.72,7.8917]
[1744825546876,0.05219084,126.79,126.71,56.73499998]
[1744825547079,47.1,126.82,126.71,56.73499998]
[1744825547272,47.1,126.82,126.74,7.8903]
[1744825547581,7.8887,126.78,126.77,0.05807873]
[1744825547968,0.05386278,126.79,126.71,4.2428]
[1744825548169,0.05386278,126.79,126.67,4.0683]
[1744825548170,48.17499998,126.79,126.7,7.893]
[1744825548377,7.89,126.76,126.67,56.27729998]
[1744825548568,47.1,126.76,126.67,56.27729998]
[1744825548769,48.17499998,126.75,126.61,47.1]
[1744825548974,47.1,126.76,126.58,15.8011]
[1744825548975,0.05143063,126.69,126.62,12.5464]
[1744825549277,0.05143063,126.69,126.62,60.72139998]
[1744825549470,48.22643061,126.69,126.56,3.19892701]
[1744825549677,0.05806534,126.64,126.57,48.17499998]
[1744825549878,7.95516534,126.64,126.6,7.8993]
[1744825550078,0.05806534,126.64,126.57,48.17499998]
[1744825550576,7.95526534,126.64,126.56,51.37392699]
[1744825550778,0.05085426,126.61,126.56,51.37392699]
[1744825551281,0.05085426,126.61,126.58,48.17499998]
[1744825551477,0.05085426,126.61,126.56,3.19892701]
[1744825551879,0.05085426,126.61,126.56,11.10042701]
[1744825552078,0.05085426,126.61,126.56,3.19892701]
[1744825553182,0.05085426,126.61,126.57,48.17499998]
[1744825553482,0.05085426,126.61,126.6,7.8995]
[1744825553781,0.05085426,126.61,126.56,51.37392699]
[1744825554572,0.05085426,126.61,126.58,7.9003]
[1744825555081,0.05085426,126.61,126.56,3.19892701]
[1744825555284,47.21085426,126.61,126.56,3.19892701]
[1744825556587,95.38585424,126.61,126.56,3.19892701]
[1744825556886,47.21085426,126.61,126.56,3.19892701]
[1744825557790,0.05085426,126.61,126.58,7.9003]
[1744825557987,0.05085426,126.61,126.57,48.17499998]
[1744825558285,0.05085426,126.61,126.57,7.9007]
[1744825558486,0.05085426,126.61,126.56,3.19892701]
[1744825558986,0.05085426,126.61,126.57,48.17499998]
[1744825559176,0.05085426,126.61,126.57,52.35779998]
[1744825559381,0.05085426,126.61,126.58,7.9006]
[1744825559582,0.05085426,126.61,126.56,3.19892701]
[1744825559782,47.18,126.6,126.56,3.19892701]
[1744825559976,47.18,126.6,126.51,4.1828]
[1744825559977,95.35499998,126.6,126.51,4.1828]
[1744825560282,0.0501107,126.57,126.49,7.9058]
[1744825560479,0.0501107,126.57,126.47,48.17499998]
[1744825560679,0.0501107,126.57,126.49,48.17499998]
[1744825561085,0.0501107,126.57,126.47,48.17499998]
[1744825561386,0.0567742,126.53,126.45,8.289]
[1744825561589,0.05142525,126.5,126.45,8.289]
[1744825561885,47.2,126.56,126.52,7.9041]
[1744825562184,615.72,126.61,126.48,48.17499998]
[1744825562390,615.72,126.61,126.53,7.9034]
[1744825562580,615.72,126.61,126.5,48.17499998]
[1744825562785,48.17499998,126.6,126.48,48.17499998]
[1744825563081,0.06036999,126.57,126.54,0.05929353]
[1744825563281,0.06036999,126.57,126.54,48.23429351]
[1744825563594,47.2,126.66,126.56,48.17499998]
[1744825563893,47.2,126.67,126.59,48.17499998]
[1744825564088,47.2,126.67,126.61,7.8986]
[1744825564284,47.2,126.67,126.59,48.17499998]
[1744825564492,0.05265513,126.64,126.62,0.05820926]
[1744825564997,56.12765511,126.64,126.55,4.1835]
[1744825565286,48.17499998,126.6,126.49,48.17499998]
[1744825565489,47.2,126.59,126.49,48.17499998]
[1744825565691,47.2,126.59,126.51,48.17499998]
[1744825566090,47.2,126.59,126.48,8.4602]
[1744825566292,0.05769024,126.56,126.54,0.05900987]
[1744825566987,95.37499998,126.64,126.54,0.05900987]
[1744825567190,95.37499998,126.64,126.49,48.17499998]
[1744825567392,48.17499998,126.6,126.49,48.17499998]
[1744825567587,47.2,126.59,126.49,48.17499998]
[1744825567890,0.05391553,126.55,126.53,0.05297258]
[1744825568286,47.2,126.59,126.53,48.22797256]
[1744825568488,47.2,126.65,126.53,48.22797256]
[1744825568688,48.17499998,126.64,126.53,48.17499998]
[1744825568887,48.17499998,126.64,126.56,7.9017]
[1744825569190,47.2,126.65,126.55,48.17499998]
[1744825569393,47.2,126.65,126.59,48.17499998]
[1744825569694,47.2,126.65,126.56,8.5472]
[1744825570494,0.05150466,126.62,126.59,0.05814957]
[1744825571492,96.34999996,126.6,126.42,48.17499998]
[1744825571699,96.34999996,126.6,126.46,4.1365]
[1744825571700,48.17499998,126.57,126.46,4.1365]
[1744825571893,48.17499998,126.55,126.46,4.1365]
[1744825572090,46.28,126.54,126.46,4.1365]
[1744825572493,7.9063,126.5,126.49,0.05128499]
[1744825572799,0.05971827,126.51,126.49,0.05128499]
[1744825573493,0.05971827,126.51,126.43,8.5308]
[1744825573698,48.17499998,126.51,126.43,8.5308]
[1744825573896,46.28,126.5,126.43,4.1539]
[1744825574394,48.17499998,126.49,126.42,7.9103]
[1744825574593,48.17499998,126.45,126.3,15.836]
[1744825574793,7.9111,126.42,126.37,7.9133]
[1744825574999,46.28,126.44,126.35,48.17499998]
[1744825575400,46.28,126.44,126.38,7.9128]
[1744825575594,0.05229874,126.42,126.4,0.0551706]
[1744825576104,46.35229874,126.42,126.4,0.0551706]
[1744825576297,46.35229874,126.42,126.33,48.17499998]
[1744825576498,46.3,126.42,126.33,48.17499998]
[1744825576703,48.17499998,126.41,126.32,4.2715]
[1744825577204,48.17499998,126.41,126.22,615.24]
[1744825577205,48.17499998,126.37,126.22,615.24]
[1744825577500,0.05199654,126.31,126.3,7.9182]
[1744825577797,46.3,126.38,126.3,48.17499998]
[1744825578502,46.3,126.38,126.32,48.17499998]
[1744825578703,46.3,126.38,126.35,7.9147]
[1744825578901,0.053127,126.36,126.35,7.9147]
[1744825579101,0.053127,126.36,126.33,4.05089549]
[1744825579604,0.053127,126.36,126.35,7.9151]
[1744825579804,46.32,126.42,126.35,48.17499998]
[1744825580004,46.32,126.42,126.34,48.17499998]
[1744825580199,46.32,126.42,126.35,7.9147]
[1744825580509,48.17499998,126.41,126.29,48.17499998]
[1744825580804,0.06025589,126.36,126.25,52.53349998]
[1744825581004,46.32,126.35,126.25,12.7459]
[1744825581207,569.4,126.34,126.25,60.92089998]
[1744825581802,569.4,126.34,126.28,0.05990343]
[1744825582006,0.06067822,126.31,126.28,0.05990343]
[1744825582205,46.34,126.3,126.28,0.05990343]
[1744825582502,46.34,126.29,126.28,0.05990343]
[1744825583714,0.06067822,126.31,126.28,48.23490341]
[1744825583909,46.34,126.39,126.31,48.17499998]
[1744825584110,46.34,126.39,126.35,7.9149]
[1744825584308,569.58,126.44,126.35,48.17499998]
[1744825584510,2.9865,126.51,126.37,48.17499998]
[1744825584711,46.34,126.5,126.39,48.17499998]
[1744825585013,0.05114092,126.45,126.43,0.05671047]
[1744825585208,94.51499998,126.45,126.43,0.05763064]
[1744825585509,94.51499998,126.45,126.28,48.17499998]
[1744825585510,96.34999996,126.44,126.28,48.17499998]
[1744825585711,48.17499998,126.42,126.29,8.2867]
[1744825585910,48.17499998,126.38,126.29,8.2867]
[1744825586107,46.34,126.37,126.3,48.17499998]
[1744825586410,0.05033975,126.35,126.32,0.05245353]
[1744825587209,46.34,126.37,126.33,7.916]
[1744825587505,46.34,126.37,126.32,48.22745351]
[1744825587709,46.34,126.4,126.38,7.9128]
[1744825588012,46.34,126.4,126.36,48.17499998]
[1744825588211,0.05700968,126.39,126.38,7.9132]
[1744825588411,0.05700968,126.39,126.37,4.46267051]
[1744825589411,46.34,126.43,126.37,4.46267051]
[1744825589607,46.34,126.43,126.37,4.4083]
[1744825589812,46.34,126.43,126.38,52.37469998]
[1744825590011,46.34,126.43,126.4,48.17499998]
[1744825590212,46.34,126.43,126.38,52.37469998]
[1744825590407,46.39188207,126.43,126.41,7.9113]
[1744825590717,46.39188207,126.43,126.4,0.05455762]
[1744825591513,617.92,126.48,126.45,7.9085]
[1744825591712,617.92,126.48,126.4,48.17499998]
[1744825592410,617.92,126.48,126.43,0.05745403]
[1744825592712,0.06065368,126.45,126.44,7.9095]
[1744825592908,569.7,126.55,126.44,48.17499998]
[1744825593116,569.7,126.55,126.5,7.9057]
[1744825593311,569.7,126.55,126.45,4.0223]
[1744825593611,617.87499998,126.55,126.47,7.9072]
[1744825593813,617.87499998,126.55,126.45,4.0223]
[1744825594115,0.0507397,126.52,126.5,0.05662621]
[1744825595217,0.0507397,126.52,126.5,7.96192621]
[1744825595413,0.0507397,126.52,126.5,0.05662621]
[1744825595911,0.0507397,126.52,126.51,7.9051]
[1744825596108,0.0507397,126.52,126.5,0.05662621]
[1744825596513,48.22573968,126.52,126.45,4.0223]
[1744825596716,48.17499998,126.5,126.39,4.3581]
[1744825596910,7.908,126.47,126.43,7.9097]
[1744825597416,7.9105,126.43,126.39,8.6164]
[1744825597620,96.33499998,126.42,126.32,48.17499998]
[1744825597814,48.16,126.41,126.3,56.62739998]
[1744825598010,48.16,126.41,126.32,48.17499998]
[1744825598215,569.46,126.45,126.38,48.17499998]
[1744825598419,569.46,126.45,126.39,8.4524]
[1744825598619,48.16,126.46,126.39,12.661]
[1744825598919,0.0559121,126.44,126.41,0.05472575]
[1744825599114,0.0559121,126.44,126.43,7.9101]
[1744825599309,48.17499998,126.51,126.41,0.05472575]
[1744825599517,48.16,126.51,126.42,48.17499998]
[1744825599715,48.16,126.51,126.44,48.17499998]
[1744825600021,48.16,126.58,126.48,48.17499998]
[1744825600224,0.05182089,126.54,126.52,0.05648509]
[1744825600522,0.05543031,126.54,126.52,0.05756442]
[1744825602424,48.17499998,126.53,126.47,4.2542]
[1744825602723,96.33499998,126.57,126.47,4.2542]
[1744825602925,48.17499998,126.59,126.47,52.42919998]
[1744825603223,48.14,126.57,126.49,48.17499998]
[1744825603423,0.05998215,126.54,126.53,7.9034]
[1744825604027,48.14,126.61,126.52,0.05929623]
[1744825604221,48.14,126.61,126.53,48.17499998]
[1744825604423,7.9005,126.59,126.52,4.0409]
[1744825604622,96.31499998,126.61,126.52,4.0409]
[1744825604820,48.14,126.61,126.53,48.17499998]
[1744825605018,48.14,126.61,126.58,7.9004]
[1744825605220,48.19394828,126.61,126.58,7.9004]
[1744825605417,48.19394828,126.61,126.56,0.05628399]
[1744825606528,48.17499998,126.58,126.5,4.389]
[1744825606723,48.17499998,126.56,126.47,8.2951]
[1744825606923,48.14,126.55,126.47,8.2951]
[1744825607225,48.17499998,126.54,126.47,8.2951]
[1744825607724,48.17499998,126.5,126.39,48.14]
[1744825607921,48.14,126.49,126.42,48.17499998]
[1744825608323,48.14,126.49,126.43,1.58190302]
[1744825608823,0.05028322,126.47,126.45,0.05544987]
[1744825609225,625.2441,126.53,126.49,7.9059]
[1744825609423,617.34,126.53,126.46,48.17499998]
[1744825609929,617.34,126.53,126.44,48.17499998]
[1744825610129,617.34,126.53,126.43,1.58190302]
[1744825610429,0.05828798,126.49,126.47,0.05554988]
[1744825611529,0.05828798,126.49,126.48,7.907]
[1744825611828,48.14,126.57,126.5,48.17499998]
[1744825612228,48.14,126.57,126.48,4.0013]
[1744825612530,48.14,126.57,126.5,48.17499998]
[1744825612832,0.05342748,126.54,126.52,48.17499998]
[1744825613029,0.05342748,126.54,126.53,7.9033]
[1744825613328,569.24,126.6,126.52,48.17499998]
[1744825613630,48.14,126.61,126.53,48.17499998]
[1744825614129,48.14,126.61,126.49,48.17499998]
[1744825614321,0.05593486,126.58,126.56,0.05041496]
[1744825614523,0.05593486,126.58,126.57,7.9013]
[1744825614720,0.05593486,126.58,126.56,0.05041496]
[1744825616029,7.95683486,126.58,126.56,0.05041496]
[1744825616230,0.05593486,126.58,126.56,0.05041496]
[1744825616534,0.05593486,126.58,126.57,7.9013]
[1744825616729,0.05593486,126.58,126.56,0.05041496]
[1744825617623,7.8977,126.63,126.6,7.8994]
[1744825617829,49.62,126.65,126.56,3.9961]
[1744825618029,49.75427982,126.64,126.56,3.9961]
[1744825618229,7.8985,126.62,126.56,3.9961]
[1744825618728,0.05991857,126.6,126.59,7.8998]
[1744825618928,0.05753036,126.61,126.58,0.06069634]
[1744825619129,0.05753036,126.61,126.58,7.96109634]
[1744825619429,0.05753036,126.61,126.58,0.06069634]
[1744825619629,0.05753036,126.61,126.59,7.8997]
[1744825619829,0.05753036,126.61,126.58,0.06069634]
[1744825620433,0.05753036,126.61,126.59,7.8998]
[1744825620633,0.05753036,126.61,126.58,0.06069634]
[1744825621330,49.62,126.7,126.59,48.17499998]
[1744825621530,49.62,126.7,126.62,48.17499998]
[1744825621834,0.2079,126.74,126.64,48.17499998]
[1744825622029,618.62,126.75,126.66,48.17499998]
[1744825622231,7.94759458,126.72,126.69,0.05330648]
[1744825622430,0.05833426,126.72,126.69,0.05027717]
[1744825623430,0.05833426,126.72,126.69,7.94367717]
[1744825623636,0.05833426,126.72,126.69,0.05027717]
[1744825624036,0.05833426,126.72,126.7,7.8932]
[1744825624227,0.05833426,126.72,126.69,0.05027717]
[1744825624443,122.80385284,126.78,126.7,48.17499998]
[1744825624634,122.80385284,126.78,126.73,48.17499998]
[1744825625437,97.77499998,126.77,126.74,0.0534011]
[1744825625632,48.17499998,126.75,126.65,8.6862]
[1744825625831,48.17499998,126.72,126.65,8.6862]
[1744825626037,7.8901,126.76,126.67,48.17499998]
[1744825626434,7.8901,126.76,126.69,48.17499998]
[1744825626638,49.6,126.77,126.71,0.05567082]
[1744825626639,0.05108351,126.74,126.71,0.05567082]
[1744825627038,48.17499998,126.73,126.65,8.6862]
[1744825627338,48.17499998,126.71,126.63,4.1258]
[1744825627528,97.75499998,126.71,126.63,4.1258]
[1744825627727,48.17499998,126.69,126.6,8.5062]
[1744825628228,0.05409663,126.66,126.63,0.05107074]
[1744825628434,0.05409663,126.66,126.63,48.22607072]
[1744825628630,49.58,126.71,126.67,7.8947]
[1744825628943,49.58,126.75,126.67,48.17499998]
[1744825629130,7.8924,126.72,126.67,7.8947]
[1744825629531,48.17499998,126.74,126.64,4.1258]
[1744825629735,0.05227408,126.7,126.68,0.04991334]
[1744825630244,7.8939,126.69,126.68,0.04991334]
[1744825630539,48.17499998,126.74,126.68,0.04991334]
[1744825630935,48.17499998,126.7,126.63,4.3711]
[1744825631135,48.17499998,126.68,126.59,4.3303]
[1744825631335,7.8958,126.66,126.59,52.50529998]
[1744825631540,48.17499998,126.66,126.54,49.58]
[1744825631841,48.17499998,126.68,126.57,48.17499998]
[1744825632038,0.06011923,126.64,126.61,0.05123683]
[1744825632239,0.06007149,126.64,126.61,0.05099884]
[1744825632438,0.06007149,126.64,126.63,7.8976]
[1744825632635,0.06007149,126.64,126.61,0.05099884]
[1744825632840,48.23507147,126.64,126.55,4.3303]
[1744825633041,48.17499998,126.62,126.55,4.3303]
[1744825633238,48.17499998,126.58,126.46,97.75499998]
[1744825633544,49.58,126.58,126.48,4.0631]
[1744825633741,48.17499998,126.57,126.48,4.0631]
[1744825633941,0.0556209,126.54,126.51,0.05818026]
[1744825636041,618.2,126.62,126.51,48.23318024]
[1744825636238,49.6,126.62,126.55,48.17499998]
[1744825636433,73.58738319,126.66,126.57,48.17499998]
[1744825637039,0.05191765,126.63,126.6,0.05426054]
[1744825637843,49.6,126.62,126.6,0.05426054]
[1744825638744,7.8989,126.61,126.6,0.05426054]
[1744825639043,49.6,126.62,126.6,0.05426054]
[1744825639744,57.4987,126.62,126.6,0.05426054]
[1744825639943,49.6,126.62,126.6,0.05426054]
[1744825640144,49.6,126.62,126.52,4.315]
[1744825640446,49.6,126.62,126.54,48.17499998]
[1744825640941,49.6,126.62,126.53,48.17499998]
[1744825641147,0.0586906,126.58,126.56,0.05603208]
[1744825641740,7.9596906,126.58,126.56,0.05603208]
[1744825641947,0.0586906,126.58,126.56,0.05603208]
[1744825642352,7.9028,126.55,126.47,4.285]
[1744825642546,97.77499998,126.57,126.47,12.5281]
[1744825642846,97.77499998,126.57,126.49,7.9061]
[1744825643149,97.77499998,126.57,126.47,12.5281]
[1744825643344,0.04986935,126.53,126.51,0.05437856]
[1744825644444,0.04986935,126.53,126.52,7.9045]
[1744825644649,50.6913,126.64,126.52,7.9]
[1744825644851,49.6,126.64,126.55,48.17499998]
[1744825645045,49.6,126.64,126.6,7.8991]
[1744825645251,48.17499998,126.62,126.51,48.17499998]
[1744825645447,48.17499998,126.62,126.51,8.1557]
[1744825645748,0.05042044,126.58,126.55,0.0525362]
[1744825645948,0.05025343,126.58,126.55,0.05396631]
[1744825646142,0.05025343,126.58,126.57,7.9013]
[1744825646552,49.6,126.64,126.55,48.22896629]
[1744825646748,49.6,126.64,126.55,48.17499998]
[1744825646948,19.80943821,126.66,126.57,48.17499998]
[1744825647145,19.80943821,126.66,126.59,48.17499998]
[1744825647546,19.80943821,126.66,126.57,48.17499998]
[1744825647742,48.17499998,126.62,126.51,56.33069998]
[1744825647948,7.9005,126.59,126.54,7.9026]
[1744825648244,48.17499998,126.6,126.51,8.1557]
[1744825648452,7.9012,126.58,126.51,8.1557]
[1744825648650,48.17499998,126.58,126.51,8.1557]
[1744825648845,0.05874446,126.56,126.53,0.05779987]
[1744825649547,48.23374444,126.56,126.53,0.05779987]
[1744825649747,48.23374444,126.56,126.3,79.177]
[1744825649748,48.17499998,126.54,126.46,8.6275]
[1744825649940,48.17499998,126.54,126.41,49.36]
[1744825649941,48.17499998,126.5,126.39,48.17499998]
[1744825650141,7.9067,126.49,126.45,7.9085]
[1744825650450,48.17499998,126.48,126.39,8.6275]
[1744825650649,0.05034987,126.45,126.43,7.9097]
[1744825650848,0.05034987,126.45,126.42,0.05020475]
[1744825653455,0.05034987,126.45,126.43,7.9101]
[1744825653654,0.05034987,126.45,126.42,0.05020475]
[1744825653851,0.05034987,126.45,126.44,7.9095]
[1744825654151,48.17499998,126.49,126.42,0.05020475]
[1744825654351,7.9077,126.47,126.42,7.96050475]
[1744825654552,48.17499998,126.49,126.42,0.05020475]
[1744825654953,0.05841139,126.47,126.44,7.9091]
[1744825655155,0.05841139,126.47,126.44,0.05459081]
[1744825655352,0.05841139,126.47,126.45,7.9083]
[1744825655750,0.05841139,126.47,126.44,0.05459081]
[1744825657351,48.23341137,126.47,126.44,0.05459081]
[1744825657555,48.17499998,126.45,126.38,7.9127]
[1744825657756,48.17499998,126.43,126.38,7.9127]
[1744825657955,49.38,126.45,126.37,4.3129]
[1744825658559,49.38,126.45,126.4,0.05428924]
[1744825658560,0.06015477,126.42,126.4,0.05428924]
[1744825659156,48.23515475,126.42,126.4,0.05428924]
[1744825659557,0.06015477,126.42,126.4,0.05428924]
[1744825659959,48.23515475,126.42,126.4,0.05428924]
[1744825660259,48.23515475,126.42,126.33,4.3033]
[1744825660456,48.17499998,126.4,126.33,4.3033]
[1744825660657,97.57499998,126.4,126.33,4.3033]
[1744825661063,97.57499998,126.4,126.35,7.9151]
[1744825661357,0.05181886,126.39,126.36,0.05480531]
[1744825661862,48.17499998,126.38,126.32,7.9166]
[1744825662270,48.17499998,126.38,126.29,8.3858]
[1744825662663,48.17499998,126.38,126.29,3.9963]
[1744825662863,48.17499998,126.34,126.25,12.6672]
[1744825663168,0.05091873,126.31,126.28,0.05836759]
[1744825664473,569.4,126.38,126.29,48.17499998]
[1744825665164,569.4,126.38,126.31,48.17499998]
[1744825665364,0.05443267,126.36,126.33,0.06000201]
[1744825665573,569.7557,126.45,126.33,48.23500199]
[1744825665769,49.42,126.44,126.4,7.9116]
[1744825666171,49.42,126.44,126.33,52.22739998]
[1744825666675,0.05787988,126.4,126.37,0.05600179]
[1744825667971,0.05787988,126.4,126.39,7.9126]
[1744825668172,0.05787988,126.4,126.37,0.05600179]
[1744825670666,49.42,126.39,126.37,0.05600179]
[1744825670871,97.59499998,126.39,126.25,97.59499998]
[1744825671070,48.17499998,126.35,126.26,8.4571]
[1744825671574,48.17499998,126.31,126.21,48.17499998]
[1744825671876,0.05315938,126.27,126.25,0.05551709]
[1744825672665,48.22815936,126.27,126.15,49.44]
[1744825672871,48.17499998,126.25,126.18,7.9252]
[1744825673174,49.44,126.24,126.13,60.96159998]
[1744825673773,0.05731191,126.2,126.17,0.0551321]
[1744825674675,97.61499998,126.3,126.19,48.17499998]
[1744825674879,49.44,126.29,126.19,48.17499998]
[1744825675072,49.46,126.33,126.23,48.17499998]
[1744825675273,49.46,126.33,126.25,48.17499998]
[1744825675574,0.05728515,126.3,126.28,0.05699466]
[1744825675974,0.05728515,126.3,126.28,7.97589466]
[1744825676176,0.05728515,126.3,126.28,0.05699466]
[1744825676375,48.23228513,126.3,126.2,4.256]
[1744825676576,48.17499998,126.3,126.24,7.9216]
[1744825676772,48.17499998,126.3,126.2,4.256]
[1744825677177,48.17499998,126.3,126.24,7.9216]
[1744825677373,0.05471344,126.28,126.26,0.05882226]
[1744825677876,48.02,126.27,126.13,15.857]
[1744825678075,48.02,126.27,126.14,12.6387]
[1744825678076,48.17499998,126.25,126.14,12.6387]
[1744825678372,48.17499998,126.21,126.08,15.8637]
[1744825678676,48.02,126.2,126.11,48.17499998]
[1744825678878,0.05585446,126.17,126.16,7.9269]
[1744825679777,0.05585446,126.17,126.15,0.05643209]
[1744825680476,0.05585446,126.17,126.16,7.927]
[1744825680778,0.05585446,126.17,126.15,0.05643209]
[1744825681677,0.05585446,126.17,126.16,7.927]
[1744825681877,48.02,126.2,126.13,48.17499998]
[1744825682580,0.06028287,126.18,126.15,0.0498353]
[1744825682781,0.05870484,126.18,126.15,0.0498353]
[1744825684875,0.05870484,126.18,126.15,7.9774353]
[1744825685075,0.05870484,126.18,126.15,0.0498353]
[1744825685884,0.05870484,126.18,126.16,7.927]
[1744825686181,0.05870484,126.18,126.15,0.0498353]
[1744825686381,0.05870484,126.18,126.0,48.06]
[1744825686382,618.55499998,126.17,126.0,48.06]
[1744825686683,48.17499998,126.11,125.95,15.8801]
[1744825686981,48.17499998,126.06,125.92,1.38067844]
[1744825687178,48.17499998,125.98,125.89,8.5706]
[1744825687378,0.0584691,125.95,125.9,7.9432]
[1744825687580,0.05185244,125.94,125.88,48.17499998]
[1744825687981,0.05185244,125.94,125.87,8.5706]
[1744825688187,0.05185244,125.94,125.89,48.17499998]
[1744825688583,0.05185244,125.94,125.87,8.5706]
[1744825689181,0.05185244,125.94,125.76,15.9042]
[1744825689489,0.05112367,125.86,125.82,48.17499998]
[1744825689784,49.54,125.91,125.82,48.17499998]
[1744825689987,49.58,125.95,125.86,48.17499998]
[1744825690384,49.58,125.95,125.81,48.17499998]
[1744825690385,48.17499998,125.92,125.81,48.17499998]
[1744825690576,49.58,125.95,125.85,48.17499998]
[1744825690778,0.05528652,125.91,125.89,0.05886284]
[1744825690980,0.05528652,125.91,125.9,7.9434]
[1744825691179,570.5,125.96,125.89,0.05886284]
[1744825691483,570.5,125.96,125.89,48.23386282]
[1744825691680,570.5,125.96,125.93,7.9415]
[1744825691990,49.58,126.01,125.93,48.17499998]
[1744825692181,0.05373315,125.96,125.93,48.17499998]
[1744825692483,0.05373315,125.96,125.93,0.05261398]
[1744825692685,0.05373315,125.96,125.94,7.9405]
[1744825692887,0.05373315,125.96,125.93,0.05261398]
[1744825693184,48.17499998,126.06,125.95,48.17499998]
[1744825693386,69.3469581,126.07,125.97,48.17499998]
[1744825693583,19.7469581,126.07,126.01,48.17499998]
[1744825694383,19.7469581,126.07,126.06,7.9333]
[1744825695184,0.05468273,126.08,126.03,48.23135126]
[1744825695380,0.05468273,126.08,126.03,0.05635128]
[1744825695583,48.17499998,126.07,126.03,0.05635128]
[1744825696188,0.05468273,126.08,126.03,0.05635128]
[1744825696391,48.22968271,126.08,126.03,0.05635128]
[1744825696690,48.17499998,126.04,125.98,12.1869]
[1744825696994,619.29499998,126.14,126.02,48.17499998]
[1744825697191,620.72,126.14,126.04,48.17499998]
[1744825697491,668.89499998,126.14,126.04,48.17499998]
[1744825697688,0.05874759,126.1,126.08,48.22722608]
[1744825697992,48.17499998,126.16,126.09,4.2604]
[1744825698181,49.6,126.15,126.09,4.2604]
[1744825698386,49.6,126.15,126.13,7.9285]
[1744825698589,97.77499998,126.15,126.04,52.46409998]
[1744825698894,0.05118712,126.11,126.08,0.05544714]
[1744825699190,49.6,126.1,126.08,0.05544714]
[1744825699388,49.6,126.1,126.04,8.5955]
[1744825699585,48.17499998,126.09,125.99,49.6]
[1744825699789,571.04,126.12,126.02,48.17499998]
[1744825699987,48.17499998,126.11,125.99,49.6]
[1744825700292,619.21499998,126.12,126.02,48.17499998]
[1744825700593,48.23455754,126.08,125.95,58.1955]
[1744825700787,49.6,126.08,125.99,48.17499998]
[1744825701092,49.6,126.08,126.01,48.17499998]
[1744825701692,50.89779998,126.17,126.03,48.22832916]
[1744825701693,48.17499998,126.13,126.03,48.22832916]
[1744825701894,48.17499998,126.09,125.97,48.17499998]
[1744825702189,49.6,126.08,125.99,48.17499998]
[1744825702490,49.6,126.08,126.01,48.17499998]
[1744825702693,48.17499998,126.11,126.01,48.17499998]
[1744825702694,0.05159055,126.06,126.03,0.05088105]
[1744825703595,49.6,126.16,126.1,7.9304]
[1744825703795,49.6,126.16,126.07,48.17499998]
[1744825704495,48.17499998,126.1,126.04,8.5932]
[1744825704689,48.17499998,126.12,126.07,7.9326]
[1744825704891,49.6,126.13,126.06,0.05440794]
[1744825705091,0.05471248,126.11,126.1,7.9308]
[1744825705292,49.6,126.17,126.08,48.17499998]
[1744825705694,49.6,126.17,126.1,48.17499998]
[1744825706195,49.6,126.17,126.14,7.9282]
[1744825706402,0.05884862,126.15,126.12,0.05463048]
[1744825706693,0.0510663,126.15,126.12,0.05348768]
[1744825706887,0.0510663,126.15,126.12,48.22848766]
[1744825707095,49.6,126.21,126.14,48.17499998]
[1744825707591,49.6,126.21,126.13,4.0665]
[1744825707800,49.6,126.25,126.16,48.17499998]
[1744825707997,73.58738319,126.3,126.2,48.17499998]
[1744825708199,0.05776487,126.26,126.24,0.05169496]
[1744825708703,0.05776487,126.26,126.24,7.97339496]
[1744825708904,0.05776487,126.26,126.24,0.05169496]
[1744825709198,73.58738319,126.3,126.25,48.17499998]
[1744825709396,73.58738319,126.35,126.27,48.17499998]
[1744825709702,73.58738319,126.35,126.25,56.32519998]
[1744825710001,48.17499998,126.32,126.25,8.1502]
[1744825710196,73.58738319,126.35,126.25,56.32519998]
[1744825710501,0.05677946,126.3,126.27,48.23018725]
[1744825710799,0.05677946,126.3,126.27,0.06053866]
[1744825711101,73.58738319,126.35,126.29,48.17499998]
[1744825711503,73.58738319,126.35,126.31,48.17499998]